lending/lending_fUSD_20250501
["ID","MTS","AMOUNT","RATE_DAILY","PERIOD"]
[359493877,1746064247831,-150.0,0.0002762,2]
[359493878,1746064247841,-206.0,0.000277,2]
[359493879,1746064247850,-150.0,0.00027708,2]
[359493880,1746064247859,-150.0,0.0002772,2]
[359493881,1746064247869,-1152.0,0.00027725,2]
[359493882,1746064247878,-150.0,0.00027777,2]
[359493883,1746064247888,-150.0,0.00027814,2]
[359493884,1746064247897,-150.0,0.00027867,2]
[359493885,1746064247908,-150.0,0.0002796,2]
[359493886,1746064247918,-5496.1085364,0.00027969,7]
[359493887,1746064247928,-150.0,0.00028015,2]
[359493888,1746064247939,-245.84741176,0.00028233,2]
[359493889,1746064247949,-1000.0,0.00028336,2]
[359493890,1746064247960,-150.0,0.00028406,2]
[359493891,1746064247971,-150.0,0.00028594,2]
[359493892,1746064247980,-5569.0,0.000286,3]
[359493893,1746064247990,-150.0,0.00028718,2]
[359493894,1746064247999,-206.0,0.0002872,2]
[359493895,1746064248009,-150.0,0.00028767,2]
[359493896,1746064248018,-800.95,0.00028767,2]
[359493897,1746064248027,-827.64,0.00028767,2]
[359493898,1746064248037,-455.76,0.00028767,2]
[359493899,1746064248046,-800.95,0.00028767,2]
[359493900,1746064248055,-800.95,0.00028767,2]
[359493901,1746064248064,-455.76,0.00028767,2]
[359493902,1746064248073,-800.95,0.00028767,2]
[359493903,1746064248083,-455.76,0.00028767,2]
[359493904,1746064248092,-800.95,0.00028767,2]
[359493905,1746064248102,-455.76,0.00028767,2]
[359493906,1746064248111,-800.95,0.00028767,2]
[359493907,1746064248121,-455.76,0.00028767,2]
[359493908,1746064248131,-455.76,0.00028767,2]
[359493909,1746064248143,-455.76,0.00028767,2]
[359493910,1746064248154,-800.95,0.00028767,2]
[359493911,1746064248165,-455.76,0.00028767,2]
[359493912,1746064248174,-800.95,0.00028767,2]
[359493913,1746064248184,-455.76,0.00028767,2]
[359493914,1746064248194,-5979.66,0.00028767,2]
[359493915,1746064248203,-151.08,0.00028785,2]
[359493916,1746064248213,-525.57,0.00028794,2]
[359493917,1746064248223,-150.0,0.00028817,2]
[359493918,1746064248233,-150.0,0.00028819,2]
[359493919,1746064248242,-5496.1085364,0.00028866,8]
[359493920,1746064248251,-150.0,0.00028876,2]
[359493921,1746064248261,-150.0,0.00028939,2]
[359493922,1746064248271,-500.0,0.0002897,2]
[359493923,1746064248280,-1000.0,0.0002897,2]
[359493924,1746064248289,-150.0,0.00028974,2]
[359493925,1746064248299,-464.8996168,0.00028999,10]
[359493926,1746064248308,-6780.97494283,0.00029,2]
[359493927,1746064248318,-54897.35590166,0.00029,2]
[359493928,1746064248328,-386.71438195,0.00029,6]
[359493929,1746064248337,-260.27172266,0.00029,2]
[359493930,1746064248348,-151.0,0.00029,7]
[359493931,1746064248358,-151.0,0.00029,7]
[359493932,1746064248368,-151.0,0.00029,7]
[359493933,1746064248377,-151.0,0.00029,7]
[359493934,1746064248386,-184.285043,0.00029,7]
[359493935,1746064248396,-502.06759,0.00029,7]
[359493936,1746064248405,-177.036285,0.00029,7]
[359493937,1746064248415,-188.73458,0.00029,7]
[359493938,1746064248425,-550.0,0.00029,2]
[359493939,1746064248434,-500.0,0.00029,7]
[359493940,1746064248443,-500.0,0.00029,7]
[359493941,1746064248453,-500.0,0.00029,7]
[359493942,1746064248463,-472.43,0.00029,7]
[359493943,1746064248473,-500.0,0.00029,7]
[359493944,1746064248482,-500.0,0.00029,7]
[359493945,1746064248492,-500.0,0.00029,7]
[359493946,1746064248501,-500.0,0.00029,7]
[359493947,1746064248510,-500.0,0.00029,7]
[359493948,1746064248519,-500.0,0.00029,7]
[359493949,1746064248530,-500.0,0.00029,7]
[359493950,1746064248540,-500.0,0.00029,7]
[359493951,1746064248550,-500.0,0.00029,7]
[359493952,1746064248559,-500.0,0.00029,7]
[359493953,1746064248569,-500.0,0.00029,7]
[359493954,1746064248579,-500.0,0.00029,7]
[359493955,1746064248588,-500.0,0.00029,7]
[359493956,1746064248598,-500.0,0.00029,7]
[359493957,1746064248607,-500.0,0.00029,7]
[359493958,1746064248617,-500.0,0.00029,7]
[359493959,1746064248626,-500.0,0.00029,7]
[359493960,1746064248636,-500.0,0.00029,7]
[359493961,1746064248646,-619.31,0.00029,7]
[359493962,1746064248655,-500.0,0.00029,7]
[359493963,1746064248665,-1625.93,0.00029259,2]
[359493964,1746064248675,-1000.0,0.00029312,2]
[359493965,1746064248685,-150.0,0.00029324,2]
[359493966,1746064248694,-150.0,0.00029346,2]
[359493967,1746064248703,-150.0,0.00029444,2]
[359493968,1746064248712,-217.98698,0.00029521,7]
[359493969,1746064248721,-151.0,0.00029521,7]
[359493970,1746064248731,-151.0,0.00029521,7]
[359493971,1746064248741,-151.0,0.00029521,7]
[359493972,1746064248750,-151.0,0.00029521,7]
[359493973,1746064248760,-150.0,0.00029576,2]
[359493974,1746064248769,-150.0,0.0002958,2]
[359493975,1746064248779,-150.0,0.00029585,2]
[359493976,1746064248788,-150.0,0.00029588,2]
[359493977,1746064248798,-5569.0,0.000296,5]
[359493978,1746064248807,-1149.4828799,0.00029611,2]
[359493979,1746064248817,-150.0,0.00029634,2]
[359493980,1746064248826,-150.0,0.00029647,2]
[359493981,1746064248836,-150.0,0.00029651,2]
[359493982,1746064248845,-150.0,0.00029683,2]
[359493983,1746064248855,-150.0,0.00029702,2]
[359493984,1746064248865,-150.0,0.00029708,2]
[359493985,1746064248875,-3473.5427341,0.00029722,2]
[359493986,1746064248885,-111085.4018791,0.00029722,2]
[359493987,1746064248894,-164.671152,0.00029722,7]
[359493988,1746064248904,-156.014225,0.00029722,7]
[359493989,1746064248914,-184.996743,0.00029722,7]
[359493990,1746064248923,-184.996743,0.00029722,7]
[359493991,1746064248933,-151.0,0.00029722,7]
[359493992,1746064248942,-151.0,0.00029722,7]
[359493993,1746064248952,-151.0,0.00029722,7]
[359493994,1746064248961,-151.0,0.00029722,7]
[359493995,1746064248971,-151.0,0.00029722,7]
[359493996,1746064248980,-2968.376951,0.00029722,7]
[359493997,1746064248990,-2968.376951,0.00029722,7]
[359493998,1746064248999,-295.073806,0.00029722,7]
[359493999,1746064249008,-151.0,0.00029722,7]
[359494000,1746064249018,-295.073806,0.00029722,7]
[359494001,1746064249028,-151.0,0.00029722,7]
[359494002,1746064249039,-415.844051,0.00029722,7]
[359494003,1746064249049,-415.844051,0.00029722,7]
[359494004,1746064249058,-161.767001,0.00029722,7]
[359494005,1746064249068,-161.767001,0.00029722,7]
[359494006,1746064249078,-161.292651,0.00029722,7]
[359494007,1746064249088,-158.819562,0.00029726,7]
[359494008,1746064249098,-151.0,0.00029726,7]
[359494009,1746064249108,-455.76,0.00029726,2]
[359494010,1746064249118,-800.95,0.00029726,2]
[359494011,1746064249130,-800.95,0.00029726,2]
[359494012,1746064249140,-455.76,0.00029726,2]
[359494013,1746064249149,-800.95,0.00029726,2]
[359494014,1746064249160,-455.76,0.00029726,2]
[359494015,1746064249171,-455.76,0.00029726,2]
[359494016,1746064249180,-455.76,0.00029726,2]
[359494017,1746064249190,-455.76,0.00029726,2]
[359494018,1746064249201,-455.76,0.00029726,2]
[359494019,1746064249211,-150.0,0.00029727,2]
[359494020,1746064249222,-150.0,0.00029727,2]
[359494021,1746064249232,-59081.5182039,0.00029742,2]
[359494022,1746064249242,-411.0907785,0.00029742,2]
[359494023,1746064249253,-150.0,0.00029743,2]
[359494024,1746064249263,-150.0,0.00029745,2]
[359494025,1746064249272,-150.0,0.00029748,2]
[359494026,1746064249282,-206.0,0.0002975,2]
[359494027,1746064249291,-150.0,0.00029752,2]
[359494028,1746064249301,-150.0,0.00029753,2]
[359494029,1746064249310,-5496.1085364,0.00029762,8]
[359494030,1746064249320,-150.0,0.00029764,2]
[359494031,1746064249329,-150.0,0.00029775,2]
[359494032,1746064249338,-153.03635294,0.00029779,2]
[359494033,1746064249348,-150.0,0.00029809,2]
[359494034,1746064249357,-150.0,0.00029821,2]
[359494035,1746064249367,-155.82213598,0.00029828,2]
[359494036,1746064249377,-150.0,0.0002983,2]
[359494037,1746064249387,-150.0,0.00029845,2]
[359494038,1746064249397,-150.0,0.00029846,2]
[359494039,1746064249407,-150.0,0.00029846,2]
[359494040,1746064249417,-150.0,0.00029867,2]
[359494041,1746064249427,-150.0,0.00029873,2]
[359494042,1746064249437,-1000.0,0.00029888,2]
[359494043,1746064249447,-11068.80443611,0.0002991,2]
[359494044,1746064249456,-150.0,0.00029929,2]
[359494045,1746064249466,-150.0,0.00029937,2]
[359494046,1746064249476,-151.0,0.00029958,7]
[359494047,1746064249486,-349.895202,0.00029958,7]
[359494048,1746064249496,-349.895202,0.00029958,7]
[359494049,1746064249506,-151.0,0.00029958,7]
[359494050,1746064249515,-151.0,0.00029958,7]
[359494051,1746064249525,-151.0,0.00029958,7]
[359494052,1746064249535,-268.833068,0.00029958,7]
[359494053,1746064249545,-151.0,0.00029958,7]
[359494054,1746064249554,-151.0,0.00029958,7]
[359494055,1746064249564,-370.20947,0.00029958,7]
[359494056,1746064249573,-370.20947,0.00029958,7]
[359494057,1746064249582,-151.0,0.00029958,7]
[359494058,1746064249592,-151.0,0.00029958,7]
[359494059,1746064249602,-156.782565,0.00029958,7]
[359494060,1746064249612,-156.782565,0.00029958,7]
[359494061,1746064249621,-216.52952333,0.00029961,2]
[359494062,1746064249630,-500.0,0.0002997,2]
[359494063,1746064249640,-1000.0,0.0002997,2]
[359494064,1746064249649,-500.0,0.0002997,2]
[359494065,1746064249658,-1000.0,0.0002997,2]
[359494066,1746064249668,-151.0,0.0002997,7]
[359494067,1746064249805,-151.0,0.0002997,7]
[359494068,1746064249816,-151.0,0.0002997,7]
[359494069,1746064249825,-151.0,0.0002997,7]
[359494070,1746064249834,-150.0,0.00029976,2]
[359494071,1746064249844,-3404.7,0.0003,2]
[359494072,1746064249855,-1158.44044072,0.0003,10]
[359494073,1746064249865,-1246.41755291,0.0003,2]
[359494074,1746064249874,-5307.0,0.0003,2]
[359494075,1746064249883,-10000.0,0.0003,10]
[359494076,1746064249893,-194.72139,0.0003,7]
[359494077,1746064249902,-1543.9474,0.0003,2]
[359494078,1746064249912,-1543.9474,0.0003,2]
[359494079,1746064249921,-264.944795,0.0003,7]
[359494080,1746064249931,-263.071309,0.0003,7]
[359494081,1746064249940,-263.071309,0.0003,7]
[359494082,1746064249949,-491.1693,0.0003,2]
[359494083,1746064249959,-491.1693,0.0003,2]
[359494084,1746064249968,-759.3522,0.0003,2]
[359494085,1746064249978,-759.3522,0.0003,2]
[359494086,1746064249988,-151.0,0.0003,7]
[359494087,1746064249998,-160.0,0.0003,2]
[359494088,1746064250007,-200.0,0.0003,2]
[359494089,1746064250017,-500.0,0.0003,11]
[359494090,1746064250026,-500.0,0.0003,11]
[359494091,1746064250036,-500.0,0.0003,11]
[359494092,1746064250046,-500.0,0.0003,11]
[359494093,1746064250056,-500.0,0.0003,11]
[359494094,1746064250065,-500.0,0.0003,11]
[359494095,1746064250075,-500.0,0.0003,11]
[359494096,1746064250085,-500.0,0.0003,11]
[359494097,1746064250096,-1118.148148,0.0003,7]
[359494098,1746064250105,-1118.148148,0.0003,7]
[359494099,1746064250115,-151.08,0.00030037,2]
[359494100,1746064250125,-151.0,0.00030095,7]
[359494101,1746064250135,-151.0,0.00030095,7]
[359494102,1746064250146,-9337.06,0.0003011,2]
[359494103,1746064250156,-151.0,0.0003011,7]
[359494104,1746064250165,-151.0,0.0003011,7]
[359494105,1746064250175,-177.240417,0.0003011,7]
[359494106,1746064250186,-151.0,0.0003011,7]
[359494107,1746064250195,-151.0,0.0003011,7]
[359494108,1746064250205,-151.0,0.0003011,7]
[359494109,1746064250216,-151.0,0.0003011,7]
[359494110,1746064250226,-340.813168,0.0003011,7]
[359494111,1746064250235,-340.813168,0.0003011,7]
[359494112,1746064250244,-151.0,0.00030116,7]
[359494113,1746064250253,-150.0,0.00030136,2]
[359494114,1746064250263,-150.09,0.00030137,2]
[359494115,1746064250273,-5979.66,0.00030137,2]
[359494116,1746064250282,-155.0,0.00030137,2]
[359494117,1746064250291,-155.0,0.00030137,2]
[359494118,1746064250300,-166.36249429,0.00030137,2]
[359494119,1746064250310,-923.0,0.00030176,2]
[359494120,1746064250319,-797.0,0.00030176,2]
[359494121,1746064250328,-1289.0,0.00030176,2]
[359494122,1746064250338,-872.661,0.00030176,2]
[359494123,1746064250347,-153.0,0.00030176,2]
[359494124,1746064250356,-878.0,0.00030176,2]
[359494125,1746064250366,-151.0,0.00030176,7]
[359494126,1746064250375,-1613.0,0.00030199,2]
[359494127,1746064250385,-502.84836243,0.00030252,5]
[359494128,1746064250395,-500.68481339,0.00030252,5]
[359494129,1746064250404,-500.0,0.00030637,10]
[359494130,1746064250419,-5458.7532893,0.00030638,2]
[359494131,1746064250428,-9306.2767587,0.00030638,2]
[359494132,1746064250438,-1725.3133735,0.00030638,2]
[359494133,1746064250447,-5496.1085364,0.00030659,9]
[359494134,1746064250457,-206.0,0.0003077,2]
[359494135,1746064250466,-600.0,0.00031,2]
[359494136,1746064250475,-1326.03,0.00031,2]
[359494137,1746064250485,-150.09,0.00031023,2]
[359494138,1746064250494,-800.95,0.00031056,2]
[359494139,1746064250503,-470.77,0.00031056,2]
[359494140,1746064250513,-525.57,0.00031057,2]
[359494141,1746064250523,-451.24,0.00031202,2]
[359494142,1746064250533,-324.22,0.00031202,2]
[359494143,1746064250542,-1179.8,0.00031202,2]
[359494144,1746064250551,-150.0,0.00031202,2]
[359494145,1746064250561,-2305.98,0.00031202,2]
[359494146,1746064250570,-162.11,0.00031202,2]
[359494147,1746064250580,-451.24,0.00031202,2]
[359494148,1746064250590,-1152.99,0.00031202,2]
[359494149,1746064250599,-300.0,0.00031202,2]
[359494150,1746064250608,-162.11,0.00031202,2]
[359494151,1746064250618,-150.0,0.00031202,2]
[359494152,1746064250627,-451.24,0.00031202,2]
[359494153,1746064250637,-465.24,0.00031202,2]
[359494154,1746064250646,-449.51,0.00031202,2]
[359494155,1746064250655,-1152.99,0.00031202,2]
[359494156,1746064250665,-351.81,0.00031202,2]
[359494157,1746064250674,-253.12,0.00031202,2]
[359494158,1746064250683,-150.0,0.00031202,2]
[359494159,1746064250692,-703.62,0.00031202,2]
[359494160,1746064250701,-902.48,0.00031202,2]
[359494161,1746064250711,-1152.99,0.00031202,2]
[359494162,1746064250720,-150.0,0.00031202,2]
[359494163,1746064250729,-162.11,0.00031202,2]
[359494164,1746064250738,-351.81,0.00031202,2]
[359494165,1746064250747,-162.11,0.00031202,2]
[359494166,1746064250757,-431.99,0.00031202,2]
[359494167,1746064250769,-1152.99,0.00031202,2]
[359494168,1746064250778,-351.81,0.00031202,2]
[359494169,1746064250788,-351.81,0.00031202,2]
[359494170,1746064250797,-1152.99,0.00031202,2]
[359494171,1746064250806,-162.11,0.00031202,2]
[359494172,1746064250815,-351.81,0.00031202,2]
[359494173,1746064250825,-304.21675482,0.000314,30]
[359494174,1746064250834,-150.0,0.00031506,2]
[359494175,1746064250843,-5979.66,0.00031507,2]
[359494176,1746064250853,-5496.1085364,0.00031555,10]
[359494177,1746064250863,-206.0,0.000318,2]
[359494178,1746064250873,-150.09,0.0003191,2]
[359494179,1746064250884,-152.0,0.0003199,3]
[359494180,1746064250895,-1533.24637272,0.00032,2]
[359494181,1746064250906,-800.95,0.00032015,2]
[359494182,1746064250916,-800.95,0.00032015,2]
[359494183,1746064250927,-455.76,0.00032015,2]
[359494184,1746064250937,-800.95,0.00032015,2]
[359494185,1746064250949,-455.76,0.00032015,2]
[359494186,1746064250958,-800.95,0.00032015,2]
[359494187,1746064250968,-455.76,0.00032015,2]
[359494188,1746064250978,-843.21,0.00032015,2]
[359494189,1746064250988,-455.76,0.00032015,2]
[359494190,1746064250997,-924.21,0.00032015,2]
[359494191,1746064251007,-1148.0,0.00032024,2]
[359494192,1746064251016,-150.0,0.00032024,2]
[359494193,1746064251026,-162.11,0.00032024,2]
[359494194,1746064251035,-162.11,0.00032024,2]
[359494195,1746064251044,-150.0,0.00032024,2]
[359494196,1746064251054,-150.0,0.00032024,2]
[359494197,1746064251063,-150.0,0.00032024,2]
[359494198,1746064251072,-150.0,0.00032024,2]
[359494199,1746064251081,-162.05,0.00032024,2]
[359494200,1746064251091,-150.0,0.00032024,2]
[359494201,1746064251101,-150.0,0.00032024,2]
[359494202,1746064251111,-150.0,0.00032024,2]
[359494203,1746064251120,-150.0,0.00032024,2]
[359494204,1746064251134,-614.516326,0.00032024,7]
[359494205,1746064251143,-614.516326,0.00032024,7]
[359494206,1746064251153,-388.6190727,0.00032048,4]
[359494207,1746064251162,-169.1934,0.00032249,4]
[359494208,1746064251173,-245.84741176,0.000324,2]
[359494209,1746064251182,-5496.1085364,0.00032452,10]
[359494210,1746064251191,-151.0,0.00032452,7]
[359494211,1746064251200,-150.0,0.00032481,2]
[359494212,1746064251211,-216.52952333,0.00032535,2]
[359494213,1746064251220,-150.09,0.00032796,2]
[359494214,1746064251231,-4657.27604325,0.000328,2]
[359494215,1746064251242,-206.0,0.0003282,2]
[359494216,1746064251251,-1687.16858385,0.00032872,2]
[359494217,1746064251260,-150.0,0.00032876,2]
[359494218,1746064251270,-200.0,0.00032876,2]
[359494219,1746064251280,-5979.66,0.00032877,2]
[359494220,1746064251291,-331.91,0.00032877,2]
[359494221,1746064251300,-175.75,0.00032877,30]
[359494222,1746064251311,-170.232697,0.00032877,7]
[359494223,1746064251321,-175.0,0.00032877,2]
[359494224,1746064251329,-230.0,0.00032877,2]
[359494225,1746064251339,-500.0,0.00032877,2]
[359494226,1746064251348,-500.0,0.00032877,2]
[359494227,1746064251357,-500.0,0.00032877,2]
[359494228,1746064251367,-500.0,0.00032877,2]
[359494229,1746064251377,-500.0,0.00032877,2]
[359494230,1746064251387,-500.0,0.00032877,2]
[359494231,1746064251397,-500.0,0.00032877,2]
[359494232,1746064251408,-317.01261664,0.00032877,2]
[359494233,1746064251419,-1132.0,0.00032893,2]
[359494234,1746064251429,-521.24830676,0.000329,2]
[359494235,1746064251438,-853.0,0.000329,2]
[359494236,1746064251448,-200.0,0.00032917,2]
[359494237,1746064251457,-152.0,0.00032921,4]
[359494238,1746064251467,-204.07431303,0.0003293,30]
[359494239,1746064251477,-351.59,0.00032957,2]
[359494240,1746064251486,-216.89356693,0.00033,10]
[359494241,1746064251496,-1173.42281616,0.00033,2]
[359494242,1746064251505,-562.24590213,0.00033,120]
[359494243,1746064251515,-157.64,0.00033,30]
[359494244,1746064251525,-650.0,0.00033,2]
[359494245,1746064251535,-1326.03,0.00033,2]
[359494246,1746064251545,-160.0,0.00033,2]
[359494247,1746064251554,-216.76347815,0.000331,2]
[359494248,1746064251564,-942.85,0.00033165,2]
[359494249,1746064251573,-923.0,0.00033176,2]
[359494250,1746064251582,-295.183,0.00033176,2]
[359494251,1746064251593,-153.0,0.00033176,2]
[359494252,1746064251602,-878.0,0.00033176,2]
[359494253,1746064251611,-3094.26,0.000333,7]
[359494254,1746064251620,-525.57,0.00033321,2]
[359494255,1746064251630,-5496.1085364,0.00033348,11]
[359494256,1746064251639,-20292.48345863,0.00033417,7]
[359494257,1746064251649,-1170.10002796,0.000335,2]
[359494258,1746064251658,-2544.03836508,0.000335,6]
[359494259,1746064251668,-150.09,0.00033683,2]
[359494260,1746064251677,-206.0,0.0003385,2]
[359494261,1746064251687,-207.0,0.0003385,30]
[359494262,1746064251696,-152.0,0.00033853,5]
[359494263,1746064251705,-1002.0,0.00034,2]
[359494264,1746064251715,-1000.0,0.00034,3]
[359494265,1746064251724,-2032.23191869,0.00034,2]
[359494266,1746064251733,-500.0,0.00034,120]
[359494267,1746064251743,-155.65,0.00034,2]
[359494268,1746064251752,-155.65,0.00034,2]
[359494269,1746064251872,-155.65,0.00034,2]
[359494270,1746064251893,-155.65,0.00034,2]
[359494271,1746064251902,-155.65,0.00034,2]
[359494272,1746064251913,-155.65,0.00034,2]
[359494273,1746064251922,-155.65,0.00034,2]
[359494274,1746064251932,-155.65,0.00034,2]
[359494275,1746064251943,-500.0,0.00034236,60]
[359494276,1746064251953,-5496.1085364,0.00034245,11]
[359494277,1746064251962,-150.0,0.00034246,2]
[359494278,1746064251972,-1002.0,0.000344,4]
[359494279,1746064251981,-161.95,0.00034481,2]
[359494280,1746064251990,-710.99,0.00034481,2]
[359494281,1746064251999,-150.0,0.00034548,10]
[359494282,1746064252009,-150.09,0.00034569,2]
[359494283,1746064252022,-152.0,0.00034784,6]
[359494284,1746064252033,-4000.0,0.000348,7]
[359494285,1746064252045,-439.47,0.000348,31]
[359494286,1746064252055,-439.47,0.000348,31]
[359494287,1746064252065,-439.47,0.000348,31]
[359494288,1746064252077,-439.47,0.000348,31]
[359494289,1746064252087,-439.47,0.000348,31]
[359494290,1746064252098,-439.47,0.000348,31]
[359494291,1746064252109,-439.47,0.000348,31]
[359494292,1746064252119,-439.47,0.000348,31]
[359494293,1746064252130,-439.47,0.000348,31]
[359494294,1746064252145,-439.47,0.000348,31]
[359494295,1746064252158,-439.47,0.000348,31]
[359494296,1746064252168,-439.47,0.000348,31]
[359494297,1746064252179,-206.0,0.0003487,2]
[359494298,1746064252189,-207.0,0.0003487,30]
[359494299,1746064252199,-11953.5705816,0.00034928,2]
[359494300,1746064252210,-151.0,0.00034956,7]
[359494301,1746064252220,-641.1674369,0.00034956,2]
[359494302,1746064252232,-9977.1516829,0.00034956,2]
[359494303,1746064252243,-151.0,0.00034976,7]
[359494304,1746064252254,-166.891586,0.00034976,7]
[359494305,1746064252263,-151.0,0.00034976,7]
[359494306,1746064252274,-151.0,0.00034976,7]
[359494307,1746064252284,-151.0,0.00034976,7]
[359494308,1746064252297,-42240.66479419,0.0003498,2]
[359494309,1746064252307,-151.0,0.0003498,7]
[359494310,1746064252317,-151.0,0.0003498,7]
[359494311,1746064252331,-151.0,0.0003498,7]
[359494312,1746064252343,-151.0,0.0003498,7]
[359494313,1746064252354,-502.06759,0.0003498,7]
[359494314,1746064252363,-184.285043,0.0003498,7]
[359494315,1746064252374,-502.06759,0.0003498,7]
[359494316,1746064252384,-201.886211,0.0003498,7]
[359494317,1746064252394,-1000.0,0.00035,120]
[359494318,1746064252403,-1000.0,0.00035,2]
[359494319,1746064252414,-1000.0,0.00035,3]
[359494320,1746064252423,-1050.0,0.00035,4]
[359494321,1746064252433,-1000.0,0.00035,5]
[359494322,1746064252442,-1000.0,0.00035,5]
[359494323,1746064252451,-1000.0,0.00035,4]
[359494324,1746064252461,-1000.0,0.00035,3]
[359494325,1746064252470,-1000.0,0.00035,2]
[359494326,1746064252479,-1000.0,0.00035,3]
[359494327,1746064252489,-1000.0,0.00035,3]
[359494328,1746064252498,-5000.0,0.00035,120]
[359494329,1746064252508,-151.0,0.00035,7]
[359494330,1746064252518,-151.0,0.00035,7]
[359494331,1746064252528,-165.21946607,0.00035,7]
[359494332,1746064252538,-151.0,0.00035,7]
[359494333,1746064252548,-151.0,0.00035,7]
[359494334,1746064252558,-370.20947,0.00035,7]
[359494335,1746064252567,-370.20947,0.00035,7]
[359494336,1746064252577,-151.0,0.00035,7]
[359494337,1746064252586,-151.0,0.00035,7]
[359494338,1746064252596,-700.0,0.00035,2]
[359494339,1746064252605,-1326.04254589,0.00035,2]
[359494340,1746064252615,-600.0,0.00035,3]
[359494341,1746064252624,-705.71061426,0.00035,4]
[359494342,1746064252633,-888.0,0.00035,5]
[359494343,1746064252643,-39407.44040435,0.00035,7]
[359494344,1746064252653,-600.0,0.00035,2]
[359494345,1746064252662,-1032.62,0.00035068,2]
[359494346,1746064252672,-5496.1085364,0.00035141,12]
[359494347,1746064252682,-2846.15460642,0.00035314,7]
[359494348,1746064252691,-500.0,0.00035332,60]
[359494349,1746064252701,-3000.0,0.000354,8]
[359494350,1746064252710,-150.09,0.00035455,2]
[359494351,1746064252719,-1500.0,0.00035471,5]
[359494352,1746064252729,-501.24300274,0.00035471,5]
[359494353,1746064252738,-846.53838418,0.00035471,5]
[359494354,1746064252749,-237194.27284537,0.000355,2]
[359494355,1746064252759,-1013.73366178,0.000355,10]
[359494356,1746064252768,-258.054211,0.000355,7]
[359494357,1746064252778,-584.251059,0.000355,7]
[359494358,1746064252788,-584.251059,0.000355,7]
[359494359,1746064252797,-281.740845,0.000355,7]
[359494360,1746064252807,-151.0,0.000355,7]
[359494361,1746064252816,-151.0,0.000355,7]
[359494362,1746064252825,-151.0,0.000355,7]
[359494363,1746064252834,-158.80948,0.000355,7]
[359494364,1746064252843,-151.0,0.000355,7]
[359494365,1746064252852,-151.0,0.000355,7]
[359494366,1746064252864,-151.0,0.000355,7]
[359494367,1746064252874,-151.0,0.000355,7]
[359494368,1746064252883,-151.0,0.000355,7]
[359494369,1746064252892,-168.139896,0.000355,7]
[359494370,1746064252901,-151.0,0.000355,7]
[359494371,1746064252910,-349.895202,0.000355,7]
[359494372,1746064252921,-349.895202,0.000355,7]
[359494373,1746064252930,-151.0,0.000355,7]
[359494374,1746064252939,-156.782565,0.000355,7]
[359494375,1746064252948,-156.782565,0.000355,7]
[359494376,1746064252957,-614.516326,0.000355,7]